[Event "*** Titled Tuesday Blitz"]
[Site "Chess.com"]
[Date "2021.03.02"]
[Round "11"]
[White "RobertoJBM"]
[Black "TST2014"]
[Result "1-0"]
[WhiteElo "2736"]
[BlackElo "2626"]
[TimeControl "180+1"]
[EndTime "12:10:39 PST"]
[Termination "RobertoJBM won on time"]

1. d4 {[%clk 0:03:00.9]} 1... Nf6 {[%clk 0:02:59.2]} 2. c4 {[%clk 0:03:01.3]}
2... c5 {[%clk 0:02:58.2]} 3. d5 {[%clk 0:03:00.6]} 3... b5 {[%clk 0:02:58.2]}
4. cxb5 {[%clk 0:03:01.5]} 4... a6 {[%clk 0:02:57.9]} 5. b6 {[%clk 0:03:02.1]}
5... d6 {[%clk 0:02:56.3]} 6. Nc3 {[%clk 0:03:02.2]} 6... g6 {[%clk 0:02:56.2]}
7. e4 {[%clk 0:03:02.2]} 7... Bg7 {[%clk 0:02:56.3]} 8. Nf3 {[%clk 0:03:02.5]}
8... O-O {[%clk 0:02:56]} 9. Be2 {[%clk 0:03:02.8]} 9... Nbd7 {[%clk 0:02:56.1]}
10. Nd2 {[%clk 0:03:03.1]} 10... Nxb6 {[%clk 0:02:55.5]} 11. a4 {[%clk
0:03:03.4]} 11... a5 {[%clk 0:02:54.7]} 12. O-O {[%clk 0:03:03.3]} 12... Ba6
{[%clk 0:02:54.4]} 13. Bxa6 {[%clk 0:03:02.8]} 13... Rxa6 {[%clk 0:02:53.7]} 14.
Re1 {[%clk 0:03:03.6]} 14... Nfd7 {[%clk 0:02:49.8]} 15. Qc2 {[%clk 0:03:03.5]}
15... c4 {[%clk 0:02:42.1]} 16. Nb5 {[%clk 0:02:56.1]} 16... Ne5 {[%clk
0:02:40.6]} 17. Nf1 {[%clk 0:02:46.1]} 17... Nd3 {[%clk 0:02:33.9]} 18. Re2
{[%clk 0:02:46]} 18... f5 {[%clk 0:02:15]} 19. exf5 {[%clk 0:02:38.6]} 19...
Rxf5 {[%clk 0:02:14.6]} 20. Ne3 {[%clk 0:02:38.8]} 20... Nb4 {[%clk 0:02:01]}
21. Qd1 {[%clk 0:02:29.1]} 21... Re5 {[%clk 0:01:57.3]} 22. Nc3 {[%clk 0:02:20]}
22... Qa8 {[%clk 0:01:52.2]} 23. Rb1 {[%clk 0:02:07.9]} 23... Ra7 {[%clk
0:01:40.3]} 24. Bd2 {[%clk 0:01:42.8]} 24... Rc7 {[%clk 0:01:30.6]} 25. Nb5
{[%clk 0:01:32.6]} 25... Rc5 {[%clk 0:01:27.5]} 26. Bc3 {[%clk 0:01:32.8]} 26...
N6xd5 {[%clk 0:01:11.8]} 27. Bxe5 {[%clk 0:01:28.7]} 27... Bxe5 {[%clk
0:01:10.3]} 28. Nxd5 {[%clk 0:01:22.3]} 28... Nxd5 {[%clk 0:01:09.2]} 29. g3
{[%clk 0:01:10.3]} 29... Nb4 {[%clk 0:00:43.3]} 30. Rc1 {[%clk 0:00:57]} 30...
Nd3 {[%clk 0:00:41.4]} 31. Rcc2 {[%clk 0:00:56]} 31... Qf3 {[%clk 0:00:36]} 32.
Qf1 {[%clk 0:00:48.1]} 32... h5 {[%clk 0:00:27.7]} 33. Re3 {[%clk 0:00:43.9]}
33... Qf5 {[%clk 0:00:27.3]} 34. b3 {[%clk 0:00:32.1]} 34... Nb2 {[%clk
0:00:24.4]} 35. Rxb2 {[%clk 0:00:24]} 35... Bxb2 {[%clk 0:00:23.6]} 36. bxc4
{[%clk 0:00:24.6]} 36... Be5 {[%clk 0:00:22.4]} 37. Kg2 {[%clk 0:00:21.9]} 37...
h4 {[%clk 0:00:22.3]} 38. f4 {[%clk 0:00:20.6]} 38... h3+ {[%clk 0:00:22.1]} 39.
Kf3 {[%clk 0:00:20.5]} 39... g5 {[%clk 0:00:21.5]} 40. Qd3 {[%clk 0:00:19.7]}
40... g4+ {[%clk 0:00:20.8]} 41. Ke2 {[%clk 0:00:19.5]} 41... Bf6 {[%clk
0:00:14.6]} 42. Qxf5 {[%clk 0:00:19.3]} 42... Rxf5 {[%clk 0:00:15.5]} 43. Kd3
{[%clk 0:00:19.9]} 43... Rc5 {[%clk 0:00:15.4]} 44. Re2 {[%clk 0:00:19.7]} 44...
d5 {[%clk 0:00:15.7]} 45. Rc2 {[%clk 0:00:18.9]} 45... dxc4+ {[%clk 0:00:15.4]}
46. Rxc4 {[%clk 0:00:19.8]} 46... Rd5+ {[%clk 0:00:15.9]} 47. Ke2 {[%clk
0:00:20.3]} 47... e5 {[%clk 0:00:14.5]} 48. fxe5 {[%clk 0:00:19.9]} 48... Rxe5+
{[%clk 0:00:14.5]} 49. Kf1 {[%clk 0:00:19.4]} 49... Rd5 {[%clk 0:00:14.8]} 50.
Rxg4+ {[%clk 0:00:19]} 50... Kf7 {[%clk 0:00:14.4]} 51. Re4 {[%clk 0:00:18.9]}
51... Rd1+ {[%clk 0:00:13.3]} 52. Kf2 {[%clk 0:00:18.9]} 52... Rd2+ {[%clk
0:00:13.4]} 53. Re2 {[%clk 0:00:19]} 53... Rd1 {[%clk 0:00:10.7]} 54. Kf3 {[%clk
0:00:19.2]} 54... Kg6 {[%clk 0:00:09.9]} 55. Kg4 {[%clk 0:00:17.7]} 55... Ra1
{[%clk 0:00:10.4]} 56. Re4 {[%clk 0:00:17.3]} 56... Bd8 {[%clk 0:00:05.3]} 57.
Kxh3 {[%clk 0:00:17.2]} 57... Kf5 {[%clk 0:00:05.1]} 58. Rf4+ {[%clk 0:00:17]}
58... Ke5 {[%clk 0:00:05.2]} 59. Nd4 {[%clk 0:00:17.8]} 59... Bb6 {[%clk
0:00:05.1]} 60. Nf3+ {[%clk 0:00:17.5]} 60... Ke6 {[%clk 0:00:04.8]} 61. Kg4
{[%clk 0:00:18.4]} 61... Ra3 {[%clk 0:00:03.2]} 62. Ng5+ {[%clk 0:00:18.9]}
62... Ke5 {[%clk 0:00:03.1]} 63. Rf5+ {[%clk 0:00:18.6]} 63... Kd6 {[%clk
0:00:02.7]} 64. Rf6+ {[%clk 0:00:18.1]} 64... Kc5 {[%clk 0:00:02.7]} 65. Ne4+
{[%clk 0:00:18.4]} 65... Kd5 {[%clk 0:00:02]} 66. Rxb6 {[%clk 0:00:17.7]} 66...
Kxe4 {[%clk 0:00:02.4]} 67. Rf6 {[%clk 0:00:17.4]} 67... Ke3 {[%clk 0:00:02]}
68. Rf4 {[%clk 0:00:17.9]} 68... Ke2 {[%clk 0:00:02]} 69. h4 {[%clk 0:00:18.3]}
1-0

[Event "*** Titled Tuesday Blitz"]
[Site "Chess.com"]
[Date "2021.03.02"]
[Round "11"]
[White "DinaBelenkaya"]
[Black "FMLorneTwitch"]
[Result "1-0"]
[WhiteElo "2337"]
[BlackElo "2390"]
[TimeControl "180+1"]
[EndTime "12:10:39 PST"]
[Termination "DinaBelenkaya won by checkmate"]

1. e4 {[%clk 0:03:00.9]} 1... c6 {[%clk 0:02:57.4]} 2. d4 {[%clk 0:03:00.1]}
2... d5 {[%clk 0:02:58.3]} 3. Nc3 {[%clk 0:02:55.5]} 3... dxe4 {[%clk 0:02:58]}
4. Nxe4 {[%clk 0:02:56.4]} 4... Nf6 {[%clk 0:02:58.4]} 5. Nxf6+ {[%clk
0:02:55.8]} 5... gxf6 {[%clk 0:02:59.3]} 6. c3 {[%clk 0:02:56.2]} 6... Bf5
{[%clk 0:02:58.5]} 7. Bd3 {[%clk 0:02:50.6]} 7... Bg6 {[%clk 0:02:54.8]} 8. Ne2
{[%clk 0:02:49.5]} 8... e6 {[%clk 0:02:52.4]} 9. Bf4 {[%clk 0:02:46.8]} 9... Bd6
{[%clk 0:02:52.5]} 10. Qd2 {[%clk 0:02:35.5]} 10... Qc7 {[%clk 0:02:47.1]} 11.
Bh6 {[%clk 0:02:25.4]} 11... Nd7 {[%clk 0:02:45.7]} 12. O-O-O {[%clk 0:02:15.5]}
12... O-O-O {[%clk 0:02:44.7]} 13. f4 {[%clk 0:02:06.1]} 13... Bxd3 {[%clk
0:02:38.6]} 14. Qxd3 {[%clk 0:02:07]} 14... f5 {[%clk 0:02:37.9]} 15. Qe3 {[%clk
0:01:37.6]} 15... Rhg8 {[%clk 0:02:35.8]} 16. Bg5 {[%clk 0:01:18.7]} 16... Rde8
{[%clk 0:02:33.7]} 17. Qf3 {[%clk 0:01:08.2]} 17... Rg6 {[%clk 0:02:24.4]} 18.
Rhg1 {[%clk 0:00:56.3]} 18... Reg8 {[%clk 0:02:20.5]} 19. h3 {[%clk 0:00:54.2]}
19... Qa5 {[%clk 0:02:12.6]} 20. Kb1 {[%clk 0:00:52]} 20... Nb6 {[%clk 0:02:03]}
21. g4 {[%clk 0:00:46.1]} 21... Nc4 {[%clk 0:01:50.2]} 22. Nc1 {[%clk
0:00:32.9]} 22... fxg4 {[%clk 0:01:28.4]} 23. hxg4 {[%clk 0:00:31.2]} 23... Qb5
{[%clk 0:01:21.3]} 24. Nd3 {[%clk 0:00:29.4]} 24... a5 {[%clk 0:01:14.2]} 25.
Ka1 {[%clk 0:00:14.7]} 25... a4 {[%clk 0:01:12.6]} 26. Qe2 {[%clk 0:00:12.5]}
26... h6 {[%clk 0:01:09.8]} 27. Bh4 {[%clk 0:00:12]} 27... Nb6 {[%clk
0:01:02.1]} 28. g5 {[%clk 0:00:08]} 28... hxg5 {[%clk 0:01:00.2]} 29. fxg5
{[%clk 0:00:08.2]} 29... Rh8 {[%clk 0:00:51.4]} 30. Qf2 {[%clk 0:00:08.3]} 30...
Rh7 {[%clk 0:00:43]} 31. Nc5 {[%clk 0:00:06.7]} 31... Bxc5 {[%clk 0:00:38.1]}
32. dxc5 {[%clk 0:00:07.6]} 32... Nd5 {[%clk 0:00:38.6]} 33. Qd4 {[%clk
0:00:05.8]} 33... Kb8 {[%clk 0:00:30.1]} 34. c4 {[%clk 0:00:06.1]} 34... Qb4
{[%clk 0:00:18.1]} 35. cxd5 {[%clk 0:00:04.7]} 35... Qxd4 {[%clk 0:00:16.8]} 36.
Rxd4 {[%clk 0:00:05.6]} 36... cxd5 {[%clk 0:00:15.3]} 37. Bg3+ {[%clk 0:00:06]}
37... Kc8 {[%clk 0:00:14.9]} 38. Rxa4 {[%clk 0:00:05.7]} 38... Rxg5 {[%clk
0:00:12.8]} 39. Rf4 {[%clk 0:00:04]} 39... Rhg7 {[%clk 0:00:11.6]} 40. Rf3
{[%clk 0:00:04.4]} 40... f5 {[%clk 0:00:10.9]} 41. Kb1 {[%clk 0:00:03.8]} 41...
f4 {[%clk 0:00:10]} 42. Rxf4 {[%clk 0:00:03.8]} 42... Rxg3 {[%clk 0:00:10]} 43.
Rxg3 {[%clk 0:00:04.2]} 43... Rxg3 {[%clk 0:00:10.9]} 44. Rf8+ {[%clk
0:00:04.6]} 44... Kc7 {[%clk 0:00:10.8]} 45. Rf7+ {[%clk 0:00:03.7]} 45... Kc6
{[%clk 0:00:10.8]} 46. b4 {[%clk 0:00:04]} 46... d4 {[%clk 0:00:07]} 47. Re7
{[%clk 0:00:04.1]} 47... Re3 {[%clk 0:00:06.6]} 48. Kc2 {[%clk 0:00:03.5]} 48...
e5 {[%clk 0:00:06.5]} 49. Re6+ {[%clk 0:00:03.1]} 49... Kb5 {[%clk 0:00:06.4]}
50. Rb6+ {[%clk 0:00:03.6]} 50... Kc4 {[%clk 0:00:06.9]} 51. Rxb7 {[%clk
0:00:04.3]} 51... Re2+ {[%clk 0:00:07]} 52. Kd1 {[%clk 0:00:04.6]} 52... d3
{[%clk 0:00:07]} 53. c6 {[%clk 0:00:02.6]} 53... Kc3 {[%clk 0:00:05.2]} 54. c7
{[%clk 0:00:03]} 54... Rd2+ {[%clk 0:00:05.5]} 55. Ke1 {[%clk 0:00:02.5]} 55...
Re2+ {[%clk 0:00:05.5]} 56. Kf1 {[%clk 0:00:03.1]} 56... Rxa2 {[%clk 0:00:06.1]}
57. c8=Q+ {[%clk 0:00:03.7]} 57... Kd4 {[%clk 0:00:06.7]} 58. Rd7+ {[%clk
0:00:04.2]} 58... Ke3 {[%clk 0:00:06.8]} 59. Qc5+ {[%clk 0:00:04.8]} 59... Kf3
{[%clk 0:00:05.9]} 60. Rxd3+ {[%clk 0:00:04.8]} 60... Kf4 {[%clk 0:00:05.1]} 61.
Qc4+ {[%clk 0:00:05.4]} 61... e4 {[%clk 0:00:04.1]} 62. Qxa2 {[%clk 0:00:06]}
62... exd3 {[%clk 0:00:04.2]} 63. Qf2+ {[%clk 0:00:06.7]} 63... Ke4 {[%clk
0:00:04.1]} 64. b5 {[%clk 0:00:07.6]} 64... Kd5 {[%clk 0:00:03.8]} 65. b6 {[%clk
0:00:07.6]} 65... Kc4 {[%clk 0:00:04.7]} 66. Qd2 {[%clk 0:00:07.7]} 66... Kd4
{[%clk 0:00:03.7]} 67. b7 {[%clk 0:00:08.6]} 67... Ke4 {[%clk 0:00:03.5]} 68.
b8=Q {[%clk 0:00:09.5]} 68... Kd4 {[%clk 0:00:03.9]} 69. Qd8+ {[%clk 0:00:10.4]}
69... Ke4 {[%clk 0:00:03.7]} 70. Qe8+ {[%clk 0:00:10.7]} 70... Kd5 {[%clk
0:00:02.5]} 71. Qee3 {[%clk 0:00:10.7]} 71... Kc4 {[%clk 0:00:02.2]} 72. Qexd3+
{[%clk 0:00:11.6]} 72... Kc5 {[%clk 0:00:01.9]} 73. Q2c2+ {[%clk 0:00:12.5]}
73... Kb6 {[%clk 0:00:02.2]} 74. Qdb3+ {[%clk 0:00:13.4]} 74... Ka5 {[%clk
0:00:03]} 75. Qca2# {[%clk 0:00:14.3]} 1-0

[Event "*** Titled Tuesday Blitz"]
[Site "Chess.com"]
[Date "2021.03.02"]
[Round "11"]
[White "BvsN"]
[Black "jens1102"]
[Result "1/2-1/2"]
[WhiteElo "2294"]
[BlackElo "2409"]
[TimeControl "180+1"]
[EndTime "12:10:48 PST"]
[Termination "Game drawn - insufficient material"]

1. c4 {[%clk 0:03:00.9]} 1... e5 {[%clk 0:02:57.7]} 2. Nc3 {[%clk 0:03:01.2]}
2... Nf6 {[%clk 0:02:56.3]} 3. Nf3 {[%clk 0:03:01.4]} 3... Nc6 {[%clk
0:02:56.5]} 4. e3 {[%clk 0:03:01.5]} 4... Bb4 {[%clk 0:02:56.3]} 5. Qc2 {[%clk
0:03:01.4]} 5... O-O {[%clk 0:02:56]} 6. Nd5 {[%clk 0:03:01.5]} 6... Re8 {[%clk
0:02:54.6]} 7. Qf5 {[%clk 0:03:01.5]} 7... d6 {[%clk 0:02:53.7]} 8. Nxf6+ {[%clk
0:03:01.4]} 8... Qxf6 {[%clk 0:02:53.7]} 9. Qxf6 {[%clk 0:03:01.6]} 9... gxf6
{[%clk 0:02:54.4]} 10. a3 {[%clk 0:03:00.6]} 10... Ba5 {[%clk 0:02:51.8]} 11. b4
{[%clk 0:03:00.8]} 11... Bb6 {[%clk 0:02:51.5]} 12. Bb2 {[%clk 0:02:59.6]} 12...
Be6 {[%clk 0:02:46.7]} 13. Be2 {[%clk 0:02:47.9]} 13... a5 {[%clk 0:02:46.6]}
14. b5 {[%clk 0:02:47.7]} 14... Ne7 {[%clk 0:02:46.7]} 15. d4 {[%clk 0:02:35.8]}
15... Rad8 {[%clk 0:02:23.9]} 16. O-O {[%clk 0:02:31.5]} 16... Bg4 {[%clk
0:02:21.7]} 17. h3 {[%clk 0:02:21.1]} 17... Bh5 {[%clk 0:02:22]} 18. g4 {[%clk
0:02:13.1]} 18... Bg6 {[%clk 0:02:22.2]} 19. c5 {[%clk 0:02:13.5]} 19... dxc5
{[%clk 0:02:21.3]} 20. dxe5 {[%clk 0:02:13.9]} 20... f5 {[%clk 0:02:17.3]} 21.
Rad1 {[%clk 0:01:55.9]} 21... fxg4 {[%clk 0:02:08.3]} 22. hxg4 {[%clk
0:01:55.3]} 22... Nd5 {[%clk 0:01:54.7]} 23. Bc4 {[%clk 0:01:51]} 23... Ne7
{[%clk 0:01:38.7]} 24. e6 {[%clk 0:01:49.1]} 24... c6 {[%clk 0:01:31.8]} 25. Ne5
{[%clk 0:01:38.6]} 25... Nd5 {[%clk 0:01:08.2]} 26. Nd7 {[%clk 0:01:20.2]} 26...
fxe6 {[%clk 0:01:02.7]} 27. bxc6 {[%clk 0:01:19]} 27... bxc6 {[%clk 0:00:50.1]}
28. Bxd5 {[%clk 0:01:14.5]} 28... cxd5 {[%clk 0:00:51]} 29. Nxb6 {[%clk
0:01:07.7]} 29... Rb8 {[%clk 0:00:50.6]} 30. Nd7 {[%clk 0:01:02.9]} 30... Rxb2
{[%clk 0:00:49.5]} 31. Nf6+ {[%clk 0:01:03.3]} 31... Kf7 {[%clk 0:00:50.3]} 32.
Nxe8 {[%clk 0:01:03.6]} 32... Kxe8 {[%clk 0:00:51.2]} 33. Rc1 {[%clk 0:00:54.6]}
33... c4 {[%clk 0:00:50.9]} 34. Rfd1 {[%clk 0:00:55.2]} 34... Bd3 {[%clk
0:00:49.1]} 35. Rc3 {[%clk 0:00:54.5]} 35... Kd7 {[%clk 0:00:42.4]} 36. e4
{[%clk 0:00:49.9]} 36... d4 {[%clk 0:00:40.5]} 37. Rxc4 {[%clk 0:00:46.5]} 37...
Bxc4 {[%clk 0:00:31.5]} 38. Rxd4+ {[%clk 0:00:46.6]} 38... Bd5 {[%clk
0:00:32.1]} 39. exd5 {[%clk 0:00:46.5]} 39... e5 {[%clk 0:00:32.3]} 40. Rd3
{[%clk 0:00:42.1]} 40... Kd6 {[%clk 0:00:30]} 41. Kf1 {[%clk 0:00:17]} 41... Rb5
{[%clk 0:00:29.9]} 42. Rh3 {[%clk 0:00:12.8]} 42... Rb7 {[%clk 0:00:25.9]} 43.
Rh6+ {[%clk 0:00:10]} 43... Kxd5 {[%clk 0:00:25.4]} 44. Ra6 {[%clk 0:00:10.1]}
44... Rb5 {[%clk 0:00:24.2]} 45. Rh6 {[%clk 0:00:09.3]} 45... Rb3 {[%clk
0:00:17.9]} 46. Rxh7 {[%clk 0:00:09.2]} 46... Rxa3 {[%clk 0:00:18.4]} 47. g5
{[%clk 0:00:09.4]} 47... Ke6 {[%clk 0:00:18.9]} 48. Ra7 {[%clk 0:00:07]} 48...
Kf5 {[%clk 0:00:18.2]} 49. Re7 {[%clk 0:00:05.6]} 49... Ra2 {[%clk 0:00:14]} 50.
g6 {[%clk 0:00:05.6]} 50... Kxg6 {[%clk 0:00:11.2]} 51. Rxe5 {[%clk 0:00:05.8]}
51... Kf6 {[%clk 0:00:12.1]} 52. Rb5 {[%clk 0:00:05.4]} 52... Ke6 {[%clk
0:00:11.5]} 53. Kg2 {[%clk 0:00:05.1]} 53... Kd6 {[%clk 0:00:11.7]} 54. Kg3
{[%clk 0:00:05.6]} 54... Kc6 {[%clk 0:00:12.2]} 55. Rb8 {[%clk 0:00:05.4]} 55...
a4 {[%clk 0:00:12.3]} 56. f4 {[%clk 0:00:05.1]} 56... a3 {[%clk 0:00:12.7]} 57.
Kg4 {[%clk 0:00:03.4]} 57... Ra1 {[%clk 0:00:12.8]} 58. Kf5 {[%clk 0:00:03.8]}
58... a2 {[%clk 0:00:12.4]} 59. Ra8 {[%clk 0:00:04.2]} 59... Kb7 {[%clk
0:00:12.8]} 60. Ra3 {[%clk 0:00:04.4]} 60... Kc7 {[%clk 0:00:13.3]} 61. Rc3+
{[%clk 0:00:03.6]} 61... Kd6 {[%clk 0:00:13.5]} 62. Ra3 {[%clk 0:00:04]} 62...
Kc5 {[%clk 0:00:13.4]} 63. Ra8 {[%clk 0:00:04.1]} 63... Kb4 {[%clk 0:00:13.4]}
64. Ra7 {[%clk 0:00:04.5]} 64... Kb3 {[%clk 0:00:13.6]} 65. Ra8 {[%clk 0:00:05]}
65... Rf1 {[%clk 0:00:08]} 66. Ke5 {[%clk 0:00:04.6]} 66... a1=Q+ {[%clk
0:00:05.6]} 67. Rxa1 {[%clk 0:00:05.5]} 67... Rxa1 {[%clk 0:00:06]} 68. f5
{[%clk 0:00:06.4]} 68... Kc4 {[%clk 0:00:05.3]} 69. Ke6 {[%clk 0:00:06.7]} 69...
Kc5 {[%clk 0:00:04.1]} 70. f6 {[%clk 0:00:06.7]} 70... Ra6+ {[%clk 0:00:04.2]}
71. Ke7 {[%clk 0:00:06.7]} 71... Kd5 {[%clk 0:00:04.7]} 72. f7 {[%clk
0:00:06.9]} 72... Ra7+ {[%clk 0:00:05.3]} 73. Kf6 {[%clk 0:00:06.5]} 73... Ra8
{[%clk 0:00:03.3]} 74. Kg7 {[%clk 0:00:06.8]} 74... Ke6 {[%clk 0:00:02.9]} 75.
f8=Q {[%clk 0:00:07]} 75... Rxf8 {[%clk 0:00:03.6]} 76. Kxf8 {[%clk 0:00:07.9]}
1/2-1/2

[Event "*** Titled Tuesday Blitz"]
[Site "Chess.com"]
[Date "2021.03.02"]
[Round "11"]
[White "mbachez"]
[Black "kuba2006"]
[Result "1-0"]
[WhiteElo "2485"]
[BlackElo "2384"]
[TimeControl "180+1"]
[EndTime "12:10:50 PST"]
[Termination "mbachez won on time"]

1. e4 {[%clk 0:03:00.9]} 1... Nf6 {[%clk 0:03:00.9]} 2. e5 {[%clk 0:03:00.1]}
2... Nd5 {[%clk 0:03:01]} 3. d4 {[%clk 0:02:55.8]} 3... d6 {[%clk 0:03:00.6]} 4.
c4 {[%clk 0:02:55.9]} 4... Nb6 {[%clk 0:03:00.3]} 5. exd6 {[%clk 0:02:51.6]}
5... exd6 {[%clk 0:03:01.2]} 6. Nc3 {[%clk 0:02:50.9]} 6... Be7 {[%clk
0:02:59.8]} 7. h3 {[%clk 0:02:50.8]} 7... O-O {[%clk 0:02:59.4]} 8. Nf3 {[%clk
0:02:50.9]} 8... Bf6 {[%clk 0:02:58]} 9. Be3 {[%clk 0:02:50.7]} 9... Nc6 {[%clk
0:02:57]} 10. Be2 {[%clk 0:02:49.2]} 10... d5 {[%clk 0:02:50.7]} 11. c5 {[%clk
0:02:48.8]} 11... Nc4 {[%clk 0:02:50.9]} 12. Bxc4 {[%clk 0:02:48.7]} 12... dxc4
{[%clk 0:02:51.8]} 13. O-O {[%clk 0:02:48.7]} 13... Bf5 {[%clk 0:02:41.2]} 14.
Qa4 {[%clk 0:02:45.5]} 14... Bd3 {[%clk 0:02:38.6]} 15. Rfd1 {[%clk 0:02:45.4]}
15... Nxd4 {[%clk 0:02:36.1]} 16. Nxd4 {[%clk 0:02:40.5]} 16... Bxd4 {[%clk
0:02:37]} 17. Rxd3 {[%clk 0:02:39.4]} 17... cxd3 {[%clk 0:02:31.9]} 18. Qxd4
{[%clk 0:02:37.9]} 18... Qxd4 {[%clk 0:02:27.5]} 19. Bxd4 {[%clk 0:02:37.8]}
19... Rad8 {[%clk 0:02:28]} 20. Be3 {[%clk 0:02:36.5]} 20... f5 {[%clk
0:02:22.9]} 21. g3 {[%clk 0:02:33.4]} 21... b6 {[%clk 0:02:05]} 22. Rd1 {[%clk
0:02:29.5]} 22... Rfe8 {[%clk 0:01:47.4]} 23. Kf1 {[%clk 0:02:23.7]} 23... Re5
{[%clk 0:01:44]} 24. cxb6 {[%clk 0:02:20.7]} 24... axb6 {[%clk 0:01:44.9]} 25.
Ke1 {[%clk 0:02:20.4]} 25... c5 {[%clk 0:01:43.5]} 26. b3 {[%clk 0:02:20.3]}
26... f4 {[%clk 0:01:31.1]} 27. gxf4 {[%clk 0:02:19.4]} 27... Rh5 {[%clk
0:01:31]} 28. Kd2 {[%clk 0:02:18.5]} 28... Rxh3 {[%clk 0:01:30.7]} 29. a4 {[%clk
0:02:18.3]} 29... h5 {[%clk 0:01:29.1]} 30. Ne4 {[%clk 0:02:15.2]} 30... h4
{[%clk 0:01:21.2]} 31. Rg1 {[%clk 0:02:00.8]} 31... Rh2 {[%clk 0:01:16.7]} 32.
f5 {[%clk 0:01:52.8]} 32... Kf8 {[%clk 0:01:07]} 33. a5 {[%clk 0:01:46.8]} 33...
bxa5 {[%clk 0:01:01.4]} 34. Bxc5+ {[%clk 0:01:46.3]} 34... Kf7 {[%clk 0:01:02]}
35. Rg6 {[%clk 0:01:39.5]} 35... h3 {[%clk 0:00:50.4]} 36. Ng5+ {[%clk
0:01:38.9]} 36... Kg8 {[%clk 0:00:46.3]} 37. f6 {[%clk 0:01:28.8]} 37... Rd7
{[%clk 0:00:38.5]} 38. f7+ {[%clk 0:00:18.7]} 38... Rxf7 {[%clk 0:00:38.2]} 39.
Nxf7 {[%clk 0:00:18.8]} 39... Kxf7 {[%clk 0:00:39.1]} 40. Rg3 {[%clk 0:00:17.9]}
40... Rh1 {[%clk 0:00:32.5]} 41. Rxd3 {[%clk 0:00:16.7]} 41... h2 {[%clk
0:00:17.4]} 42. Rh3 {[%clk 0:00:16.3]} 42... Rb1 {[%clk 0:00:16.8]} 43. Rxh2
{[%clk 0:00:14.4]} 43... Rxb3 {[%clk 0:00:17.4]} 44. Bd4 {[%clk 0:00:14.6]}
44... a4 {[%clk 0:00:16.1]} 45. Rh7 {[%clk 0:00:13.6]} 45... a3 {[%clk
0:00:14.7]} 46. Rxg7+ {[%clk 0:00:13.5]} 46... Ke6 {[%clk 0:00:15.3]} 47. Ra7
{[%clk 0:00:13.5]} 47... Kd5 {[%clk 0:00:14.8]} 48. Bc3 {[%clk 0:00:13.2]} 48...
Kc4 {[%clk 0:00:14]} 49. Ra4+ {[%clk 0:00:10.2]} 49... Kd5 {[%clk 0:00:09.6]}
50. Kc2 {[%clk 0:00:09]} 50... Rb7 {[%clk 0:00:09.1]} 51. Rxa3 {[%clk
0:00:08.9]} 51... Ke4 {[%clk 0:00:10]} 52. Ra4+ {[%clk 0:00:07.4]} 52... Kf3
{[%clk 0:00:10]} 53. Bd4 {[%clk 0:00:07.6]} 53... Rb8 {[%clk 0:00:07.6]} 54. Kd3
{[%clk 0:00:07.8]} 54... Rb3+ {[%clk 0:00:07.3]} 55. Kc4 {[%clk 0:00:07.9]}
55... Rb1 {[%clk 0:00:07.2]} 56. Ra3+ {[%clk 0:00:07.3]} 56... Kf4 {[%clk
0:00:07.5]} 57. Be3+ {[%clk 0:00:07]} 57... Ke4 {[%clk 0:00:07.9]} 58. Ra4
{[%clk 0:00:06.7]} 58... Rb8 {[%clk 0:00:06.6]} 59. Kc5+ {[%clk 0:00:06.7]}
59... Ke5 {[%clk 0:00:06.7]} 60. Bf4+ {[%clk 0:00:06.2]} 60... Ke6 {[%clk
0:00:07.1]} 61. Bxb8 {[%clk 0:00:07.1]} 1-0